[Event "7th Sharjah Masters 2024"]
[Site "Sharjah"]
[Date "2024.05.15"]
[Round "2.35"]
[White "Madaminov, Mukhiddin"]
[Black "Gupta, Abhijeet"]
[Result "1/2-1/2"]
[ECO "C79"]
[WhiteElo "2506"]
[BlackElo "2604"]
[Annotator "TA"]
[PlyCount "110"]
[EventDate "2024.05.13"]
[EventType "swiss"]
[EventCountry "UAE"]
[SourceTitle "playchess.com"]
[Source "ChessBase"]
[SourceQuality "1"]
[TimeControl "5400+30"]

{[%evp 34,110,43,48,42,63,45,36,43,57,41,50,48,51,49,42,41,47,50,51,51,8,8,8,8,8,8,8,8,8,8,8,8,8,8,8,8,8,8,8,8,8,8,8,8,8,8,8,8,8,8,8,8,8,8,8,8,8,8,8,8,8,8,8,8,8,8,8,8,8,8,8,8,8,8,8,8,8,8]} 1. e4 {[%emt 0:01:22]} e5 {[%emt 0:00:27]} 2. Nf3 {[%emt 0:00:51]} Nc6 {[%emt 0:00:05]} 3. Bb5 {[%emt 0:01:02]} a6 {[%emt 0:00:11]} 4. Ba4 {[%emt 0:00:37]} Nf6 {[%emt 0:00:18]} 5. O-O {[%emt 0:01:03]} d6 {[%emt 0:00:21]} 6. c3 {[%emt 0:02:55]} Bd7 {[%emt 0:00:28]} 7. d4 {[%emt 0:00:31]} g6 {[%emt 0:00:38]} 8. Re1 {[%emt 0:01:42]} Bg7 {[%emt 0:00:46]} 9. h3 {[%emt 0:00:44] C79: Ruy Lopez: Steinitz-type lines with 3...a6 4 Ba4 Nf6 5 0-0 d6.} O-O {[%emt 0:00:16]} 10. Bc2 {[%emt 0:00:05]} Nh5 {[%emt 0:00:43]} 11. a4 {[%emt 0:00:11]} Qe8 {[%emt 0:01:51]} 12. Na3 {[%emt 0:00:04]} f5 {[%emt 0:04:46]} 13. Nc4 {[%emt 0:01:30]} fxe4 {[%emt 0:00:49]} 14. Bxe4 {[%emt 0:00:10]} Qf7 {[%emt 0:00:43]} 15. dxe5 {[%emt 0:00:05]} Be6 {[%emt 0:00:11]} 16. Bxc6 {[%emt 0:00:44]} bxc6 {[%emt 0:00:08]} 17. Na5 {[%emt 0:00:05]} Bd5 {[%emt 0:00:52]} 18. Ra3 {[%emt 0:00:39]} Bxf3 {[%emt 0:00:25]} 19. Qxf3 {[%emt 0:00:06]} Qxf3 {[%emt 0:00:04]} 20. gxf3 {[%emt 0:00:04]} Bxe5 {[%emt 0:00:07]} 21. Nxc6 {[%emt 0:00:05]} Bf4 {[%emt 0:00:18]} 22. Be3 {[%emt 0:00:49]} Bxe3 {[%emt 0:10:06]} 23. Rxe3 {[%emt 0:00:16]} Nf4 {[%emt 0:00:06]} 24. Rb3 {[%emt 0:11:54]} Nxh3+ {[%emt 0:16:23]} 25. Kf1 $146 {[%emt 0:01:19]} ({Predecessor:} 25. Kh2 Nf4 26. Rb7 Kh8 27. c4 Rf5 28. Re7 Raf8 29. Rbxc7 Rh5+ 30. Kg1 Rg5+ 31. Kf1 {0-1 Shirov,A (2668)-Sambuev,B (2462) Casablanca Mohammed op 4th 2023 (3)}) 25... Nf4 {[%emt 0:05:20]} 26. Rb7 {[%emt 0:03:15]} Rf7 {[%emt 0:00:46]} 27. Re7 {[%emt 0:02:17]} Rxe7 $1 {[%emt 0:07:33]} 28. Nxe7+ {[%emt 0:00:07]} Kf7 {[%emt 0:00:12]} 29. Rxc7 {[%emt 0:00:53]} Ne6 $1 {[%emt 0:05:54]} 30. Rc8 {[%emt 0:00:28]} Rxc8 {[%emt 0:00:06]} 31. Nxc8 {[%emt 0:00:05]} d5 {[%emt 0:00:04]} 32. b4 {[%emt 0:07:35]} Ke8 {[%emt 0:07:21]} 33. Nb6 {[%emt 0:05:04]} d4 {[%emt 0:01:11]} 34. cxd4 {[%emt 0:05:24]} Nxd4 {[%emt 0:00:04]} 35. Nd5 {[%emt 0:00:26]} Kd7 {[%emt 0:04:55]} 36. Nf6+ {[%emt 0:01:52]} Kd6 {[%emt 0:00:38]} 37. Nxh7 {[%emt 0:00:33]} Nc6 {[%emt 0:04:54]} 38. b5 {[%emt 0:00:16]} axb5 {[%emt 0:00:02]} 39. axb5 {[%emt 0:00:07]} Ne7 {[%emt 0:00:03]} 40. Nf8 {[%emt 0:04:44]} Kc5 {[%emt 0:00:17]} 41. Ke2 {[%emt 0:00:04]} Kxb5 {[%emt 0:00:05]} 42. Kd3 {[%emt 0:00:11]} Kc5 {[%emt 0:02:05]} 43. Ke4 {[%emt 0:01:37]} Kc4 {[%emt 0:00:34]} 44. f4 {[%emt 0:04:48]} Kc3 {[%emt 0:00:30]} 45. Ne6 {[%emt 0:00:11]} Kd2 {[%emt 0:01:14]} 46. Nd4 {[%emt 0:00:18]} Ke1 {[%emt 0:00:55]} 47. Kf3 {[%emt 0:00:05]} Kd2 {[%emt 0:01:59]} 48. Ne6 {[%emt 0:01:08]} Kd3 {[%emt 0:01:54]} 49. Nc5+ {[%emt 0:01:08]} Kd4 {[%emt 0:00:18]} 50. Nd7 {[%emt 0:00:10]} Kd3 {[%emt 0:01:41]} 51. Ne5+ {[%emt 0:00:30]} Kd2 {[%emt 0:00:48]} 52. Kg4 {[%emt 0:01:49]} Ke2 {[%emt 0:00:15]} 53. Kg5 {[%emt 0:01:36]} Nd5 {[%emt 0:01:09]} 54. Nxg6 {[%emt 0:01:16]} Nxf4 {[%emt 0:00:09]} 55. Nxf4+ {[%emt 0:00:06]} Kxf2 {[%emt 0:00:04]} 1/2-1/2

[Event "7th Sharjah Masters 2024"]
[Site "Sharjah"]
[Date "2024.05.15"]
[Round "2.36"]
[White "Deac, Bogdan-Daniel"]
[Black "Bharath Subramaniyam H"]
[Result "1-0"]
[ECO "A13"]
[WhiteElo "2693"]
[BlackElo "2545"]
[Annotator "TA"]
[PlyCount "34"]
[EventDate "2024.05.13"]
[EventType "swiss"]
[EventCountry "UAE"]
[SourceTitle "playchess.com"]
[Source "ChessBase"]
[SourceQuality "1"]
[TimeControl "5400+30"]

{[%evp 9,34,16,17,15,0,-1,5,0,0,0,0,5,25,28,19,30,18,11,17,16,29,23,26,17,29,27,20]} 1. c4 {[%emt 0:00:02]} e6 {[%emt 0:00:42]} 2. g3 {[%emt 0:00:17]} d5 {[%emt 0:00:48]} 3. Bg2 {[%emt 0:00:02]} Nf6 {[%emt 0:03:08]} 4. Nf3 {[%emt 0:00:12]} dxc4 {[%emt 0:05:48]} 5. Qa4+ {[%emt 0:00:34]} Bd7 {[%emt 0:00:21]} 6. Qxc4 {[%emt 0:00:05]} c5 {[%emt 0:00:27]} 7. Ne5 {[%emt 0:04:34]} Qc8 {[%emt 0:00:03]} 8. Qd3 {[%emt 0:00:07] The position is equal.} Bc6 {[%emt 0:02:39]} 9. Nxc6 {[%emt 0:01:09]} Nxc6 {[%emt 0:00:02]} 10. Nc3 {[%emt 0:00:20]} a6 {[%emt 0:07:57]} 11. b3 {[%emt 0:04:07]} Be7 {[%emt 0:03:07]} 12. Bb2 {[%emt 0:00:24]} O-O {[%emt 0:02:01]} 13. Rc1 {[%emt 0:00:37]} Rd8 {[%emt 0:08:01]} 14. Qb1 {[%emt 0:00:21]} Qd7 {[%emt 0:05:12]} 15. d3 {[%emt 0:00:48]} b5 {[%emt 0:01:13] Prevents Na4.} 16. O-O {[%emt 0:01:05]} Rac8 {[%emt 0:00:29]} 17. Rfd1 {[%emt 0:04:21]} h5 {[%emt 0:13:05][%mdl 32768] An uneventful encounter.   Weighted Error Value: White=0.00 (flawless) /Black=0.03 (flawless) .  OK:         	White=8     	Black=7     . Loss on time!?} 1-0

[Event "7th Sharjah Masters 2024"]
[Site "Sharjah"]
[Date "2024.05.15"]
[Round "2.37"]
[White "Yilmaz, Mustafa"]
[Black "Pranav Anand"]
[Result "1/2-1/2"]
[ECO "D35"]
[WhiteElo "2641"]
[BlackElo "2532"]
[Annotator "TA"]
[PlyCount "157"]
[EventDate "2024.05.13"]
[EventType "swiss"]
[EventCountry "UAE"]
[SourceTitle "playchess.com"]
[Source "ChessBase"]
[SourceQuality "1"]
[TimeControl "5400+30"]

{[%evp 12,157,31,28,39,37,63,39,41,33,54,-4,0,-13,0,10,0,-9,0,2,17,8,2,0,0,0,0,0,0,-11,16,17,22,25,29,36,29,0,0,0,0,0,0,0,0,0,56,1,1,1,6,0,0,0,0,0,0,0,0,0,0,0,0,0,0,0,0,0,0,0,0,0,0,0,0,0,0,0,0,0,8,8,2,2,2,2,2,0,0,0,0,0,0,0,8,3,9,0,0,0,0,0,0,0,0,0,0,0,0,0,0,0,0,0,0,0,0,0,0,0,0,0,6,0,0,0,0,0,8,0,6,6,6,6,6,6,6,0,6,0,0,0,0,0,0,0,0,0]} 1. d4 {[%emt 0:00:02]} d5 {[%emt 0:00:08]} 2. c4 {[%emt 0:00:13]} e6 {[%emt 0:00:05]} 3. Nc3 {[%emt 0:00:39]} Nf6 {[%emt 0:00:06]} 4. cxd5 {[%emt 0:00:07]} exd5 {[%emt 0:00:05]} 5. Bg5 {[%emt 0:00:05][%cal Bc1g5,Bg5h4,Bh4g3][%mdl 32]} Bb4 {[%emt 0:00:04]} 6. e3 {[%emt 0:02:50]} h6 {[%emt 0:00:11][%cal Bh7h6,Bh6h5,Bh5h4][%mdl 32]} 7. Bh4 {[%emt 0:00:09]} g5 {[%emt 0:00:06]} 8. Bg3 {[%emt 0:00:03]} h5 {[%emt 0:00:05]} 9. Qb3 {[%emt 0:17:54]} (9. h4 {seems wilder.} Ne4 10. Nge2 Bg4 11. Qb3) 9... Bxc3+ {[%emt 0:02:05] White is slightly better.} 10. Qxc3 {[%emt 0:02:28]} Nc6 {[%emt 0:00:17]} 11. f3 {[%emt 0:03:13] Against Ne4} (11. Bb5 $14) 11... h4 $11 {[%emt 0:01:49]} 12. Bf2 {[%emt 0:06:41]} Qe7 {[%emt 0:00:11]} 13. h3 {[%emt 0:02:17]} Bd7 {[%emt 0:11:35]} 14. Bd3 {[%emt 0:02:06]} Nh5 {[%emt 0:08:09]} 15. Ne2 {[%emt 0:02:20]} f5 {[%emt 0:00:43]} 16. a3 {[%emt 0:04:05]} O-O-O {[%emt 0:12:45]} 17. Rc1 {[%emt 0:14:04]} Ng3 {[%emt 0:10:57]} 18. Nxg3 {[%emt 0:15:50]} hxg3 {[%emt 0:00:13]} 19. Bxg3 {[%emt 0:00:38]} Qxe3+ {[%emt 0:10:50]} 20. Be2 {[%emt 0:04:29]} Qe7 {[%emt 0:06:09] White must now prevent ...f4.} (20... Qxd4 $2 21. Qxd4 Nxd4 22. Rxc7+ Kb8 23. Rxd7+ $18) 21. Be5 {[%emt 0:09:10] [#] Threatens to win with b4.} Rh6 {[%emt 0:00:15]} 22. Bb5 {[%emt 0:02:39]} g4 {[%emt 0:08:26]} 23. Bxc6 {[%emt 0:00:34]} Bxc6 {[%emt 0:05:48]} 24. Qe3 {[%emt 0:01:33]} Qh7 {[%emt 0:00:24][%cal Rg4h3]} 25. Kd2 {[%emt 0:06:18]} gxh3 {[%emt 0:01:32]} 26. Rxh3 {[%emt 0:00:46]} Rxh3 {[%emt 0:00:11]} 27. gxh3 {[%emt 0:00:02]} Qxh3 {[%emt 0:00:31]} 28. Rg1 {[%emt 0:00:36]} Qh5 {[%emt 0:07:14] Black is weak on the dark squares} (28... b6 $11) 29. Rg7 {[%emt 0:01:14]} ({Better is} 29. Qf4 $1 $14) 29... Rd7 {[%emt 0:01:33] The position is equal.} 30. Rg8+ {[%emt 0:00:02]} Rd8 {[%emt 0:00:04]} 31. Rg7 {[%emt 0:01:16]} Rd7 {[%emt 0:00:02]} 32. Rg5 {[%emt 0:01:01]} Qh7 {[%emt 0:01:20]} 33. Qf4 {[%emt 0:00:57]} Rf7 {[%emt 0:00:13]} 34. Qg3 {[%emt 0:00:06] [#] Hoping for Rg8+.} Qh6 {[%emt 0:01:48]} 35. Bf4 {[%emt 0:00:55] White threatens Rg8+ and mate.} Qf6 {[%emt 0:01:27]} 36. Rg8+ {[%emt 0:00:34]} Rf8 {[%emt 0:00:01]} 37. Rxf8+ {[%emt 0:00:26]} (37. Bxc7 $2 {is the wrong capture.} Qxd4+ 38. Kc2 Rxg8 39. Qxg8+ Kxc7 $19) 37... Qxf8 {[%emt 0:00:01]} 38. Bxc7 {[%emt 0:00:09][%mdl 4096] Endgame. KQB-KQB} b6 {[%emt 0:00:34]} 39. Bf4 {[%emt 0:00:52]} Qf7 {[%emt 0:00:45]} 40. Qg5 {[%emt 0:00:29]} Kb7 {[%emt 0:01:17]} 41. Qd8 {[%emt 0:00:14]} Qd7 {[%emt 0:01:02]} 42. Qb8+ {[%emt 0:00:30]} Ka6 {[%emt 0:00:01]} 43. b3 {[%emt 0:00:20]} Qg7 {[%emt 0:00:55]} 44. Qc8+ {[%emt 0:00:41]} Bb7 {[%emt 0:00:04]} 45. Qc3 {[%emt 0:00:43]} Qg2+ {[%emt 0:00:53]} 46. Kc1 {[%emt 0:00:19]} Qf1+ {[%emt 0:00:10]} 47. Kc2 {[%emt 0:00:33]} Qe2+ {[%emt 0:01:42]} 48. Bd2 {[%emt 0:00:19]} Qb5 {[%emt 0:00:37]} 49. Kb2 {[%emt 0:00:53]} Qe2 {[%emt 0:00:22]} 50. Kc1 {[%emt 0:00:27]} Qf1+ {[%emt 0:00:34]} 51. Kb2 {[%emt 0:00:31]} Qe2 {[%emt 0:00:05]} 52. Kc2 {[%emt 0:00:30]} Qb5 {[%emt 0:00:05]} 53. Qe3 {[%emt 0:00:06]} Bc8 {[%emt 0:00:55]} 54. Qe5 {[%emt 0:00:53]} (54. Qd3 {simplifies} Qxd3+ 55. Kxd3 Bd7 56. a4) 54... Qc6+ {[%emt 0:00:22]} 55. Kb2 {[%emt 0:00:03]} Kb7 {[%emt 0:00:17]} 56. Bf4 {[%emt 0:00:29]} a5 {[%emt 0:00:32]} 57. a4 {[%emt 0:00:34]} Ka6 {[%emt 0:00:18]} 58. Qe2+ {[%emt 0:00:28]} Ka7 {[%emt 0:00:17]} 59. Qe7+ {[%emt 0:00:16]} Qd7 {[%emt 0:00:24]} 60. Qf8 {[%emt 0:00:23]} Qe6 {[%emt 0:00:37]} 61. Be5 {[%emt 0:00:17]} Qd7 {[%emt 0:00:10]} 62. Kc3 {[%emt 0:00:18]} Qc6+ {[%emt 0:00:52]} 63. Kd2 {[%emt 0:00:05]} Ka6 {[%emt 0:00:09]} 64. Bd6 {[%emt 0:01:48]} Bb7 {[%emt 0:01:03]} 65. Qe7 {[%emt 0:00:41]} Bc8 {[%emt 0:00:21]} 66. Qd8 {[%emt 0:00:43]} Qd7 {[%emt 0:00:26]} 67. Qf8 {[%emt 0:00:24]} (67. Qxd7 {simplifies} Bxd7 68. Ke3 Be8 69. Kf4) 67... Qc6 {[%emt 0:00:11]} 68. Be5 {[%emt 0:00:27]} Bd7 {[%emt 0:00:16]} 69. Qd8 {[%emt 0:00:32]} Qc8 {[%emt 0:00:44]} 70. Qe7 {[%emt 0:00:37]} (70. Qxc8+ {simplifies} Bxc8 71. Ke3 Bd7 72. Kf4) 70... Qc6 {[%emt 0:00:06]} 71. Bf4 {[%emt 0:00:29] Active counter play!} Bc8 {[%emt 0:00:18]} 72. Bd6 {[%emt 0:00:27]} Qd7 {[%emt 0:00:20]} 73. Qe2+ {[%emt 0:00:14]} (73. Qxd7 {simplifies} Bxd7 74. Ke3 Be8 75. Kf4) 73... Ka7 {[%emt 0:00:09]} 74. Bf4 {[%emt 0:00:21]} (74. Qe5 {looks sharper.} Qc6 75. Bb8+ Ka8 76. Qd6) 74... Qe6 {[%emt 0:00:29]} 75. Be5 {[%emt 0:00:01]} Qh6+ {[%emt 0:00:12]} 76. Kc2 {[%emt 0:00:40]} Ba6 {[%emt 0:00:28]} 77. Qf2 {[%emt 0:00:40]} Qh3 {[%emt 0:01:15]} 78. Kb2 {[%emt 0:00:51]} Qf1 {[%emt 0:01:05]} 79. Qxf1 {[%emt 0:00:47] Weighted Error Value: White=0.05 (flawless) /Black=0.04 (flawless) .  Mistake:       	White=2     	Black=1      Inaccurate:     	White=1     	Black=2      OK:         	White=27    	Black=41     Best:        	---       	Black=3} 1/2-1/2

[Event "7th Sharjah Masters 2024"]
[Site "Sharjah"]
[Date "2024.05.15"]
[Round "2.38"]
[White "Raja Rithvik R"]
[Black "Mendonca, Leon Luke"]
[Result "1/2-1/2"]
[ECO "A13"]
[WhiteElo "2524"]
[BlackElo "2640"]
[Annotator "TA"]
[PlyCount "55"]
[EventDate "2024.05.13"]
[EventType "swiss"]
[EventCountry "UAE"]
[SourceTitle "playchess.com"]
[Source "ChessBase"]
[SourceQuality "1"]
[TimeControl "5400+30"]

{[%evp 14,55,6,12,21,0,6,0,46,20,30,26,21,13,84,72,80,71,98,79,62,62,67,72,58,77,84,77,81,83,92,79,88,85,87,78,79,18,13,34,16,15,0,0]} 1. c4 {[%emt 0:00:11]} Nf6 {[%emt 0:00:06]} 2. g3 {[%emt 0:00:09]} e6 {[%emt 0:02:28]} 3. Bg2 {[%emt 0:00:08]} d5 {[%emt 0:00:05]} 4. Nf3 {[%emt 0:00:04]} d4 {[%emt 0:01:56]} 5. O-O {[%emt 0:00:07]} c5 {[%emt 0:00:19]} 6. e3 {[%emt 0:00:08]} Nc6 {[%emt 0:00:08]} 7. exd4 {[%emt 0:00:06]} cxd4 {[%emt 0:00:05]} 8. d3 {[%emt 0:00:03]} Bd6 {[%emt 0:01:40]} 9. Bg5 {[%emt 0:00:07]} h6 {[%emt 0:01:46]} 10. Bxf6 {[%emt 0:00:07]} gxf6 {[%emt 0:00:08]} (10... Qxf6 $11 11. Nbd2 Qe7) 11. Nbd2 {[%emt 0:09:25]} Kf8 {[%emt 0:03:51]} 12. a3 {[%emt 0:01:28]} a5 {[%emt 0:00:11]} 13. Rc1 {[%emt 0:00:13]} f5 {[%emt 0:06:26]} (13... h5 $11 {keeps the balance.}) 14. c5 $16 {[%emt 0:04:41]} Bc7 {[%emt 0:00:09]} 15. Re1 {[%emt 0:02:23]} Qf6 {[%emt 0:05:26]} 16. Nc4 {[%emt 0:06:44]} Kg7 {[%emt 0:07:00]} 17. Nfd2 {[%emt 0:15:20]} Ra6 {[%emt 0:14:18]} 18. Nd6 {[%emt 0:08:25]} Bxd6 {[%emt 0:06:37]} 19. cxd6 {[%emt 0:00:33]} Rd8 {[%emt 0:04:46]} 20. Rc5 {[%emt 0:07:59]} Rxd6 {[%emt 0:09:40] [#]} 21. b4 $1 {[%emt 0:00:35]} axb4 {[%emt 0:00:06]} 22. axb4 {[%emt 0:00:05] Threatens to win with b5.} Ra8 {[%emt 0:15:19]} 23. Nc4 {[%emt 0:01:53]} Rd8 {[%emt 0:00:04]} 24. b5 {[%emt 0:08:40]} Ne7 {[%emt 0:00:21]} 25. Rc7 {[%emt 0:08:44] White is much more active.} ({Better is} 25. Qc1 $16 {And now Nb6 would win.} f4 26. Rc7 (26. Qxf4 Qxf4 27. gxf4 Ng6 $16) (26. gxf4 Ng6 $14)) 25... Rd7 $1 $11 {[%emt 0:02:33]} 26. Rxd7 {[%emt 0:09:14]} Bxd7 {[%emt 0:00:02]} 27. Nb6 {[%emt 0:00:07]} Rd8 {[%emt 0:00:32]} 28. Qa4 {[%emt 0:01:54] Weighted Error Value: White=0.09 (flawless) /Black=0.12 (very precise) .  Mistake:       	White=1     	Black=2      Inaccurate:     	White=1     	Black=1      OK:         	White=10    	Black=11     Best:        	---       	Black=1      Strong:       	---       	Black=1} 1/2-1/2

[Event "7th Sharjah Masters 2024"]
[Site "Sharjah"]
[Date "2024.05.15"]
[Round "2.39"]
[White "Idani, Pouya"]
[Black "Yilmazyerli, Mert"]
[Result "1/2-1/2"]
[ECO "A50"]
[WhiteElo "2605"]
[BlackElo "2522"]
[Annotator "TA"]
[PlyCount "26"]
[EventDate "2024.05.13"]
[EventType "swiss"]
[EventCountry "UAE"]
[SourceTitle "playchess.com"]
[Source "ChessBase"]
[SourceQuality "1"]
[TimeControl "5400+30"]

{[%evp 9,26,14,18,25,16,16,9,0,0,0,0,14,20,11,15,-16,-12,-49,424]} 1. d4 {[%emt 0:00:03]} Nf6 {[%emt 0:00:29]} 2. c4 {[%emt 0:00:04]} e6 {[%emt 0:00:25]} 3. Bf4 {[%emt 0:00:06]} d5 {[%emt 0:00:52]} 4. cxd5 {[%emt 0:00:05]} Nxd5 {[%emt 0:00:36]} 5. Bg3 {[%emt 0:00:07]} Nf6 {[%emt 0:01:16]} 6. Nc3 {[%emt 0:02:35]} c5 {[%emt 0:04:21]} 7. dxc5 {[%emt 0:10:30]} Qxd1+ {[%emt 0:00:30]} 8. Rxd1 {[%emt 0:00:36] The position is equal.} Bxc5 {[%emt 0:00:08]} 9. e4 {[%emt 0:02:27]} Nc6 {[%emt 0:03:48]} 10. a3 {[%emt 0:01:59]} Bd7 {[%emt 0:01:34]} 11. h3 {[%emt 0:12:41]} Nd4 {[%emt 1:22:01]} 12. Be2 Bc6 {[%emt 0:00:00]} 13. b4 {[%emt 0:08:40] [#]} Bd7 $2 {[%emt 0:00:00][%mdl 40960] Weighted Error Value: White=0.11 (very precise) /Black=0.02 (flawless) .  Loses game:     	---       	Black=1      Inaccurate:     	White=2     	---        OK:         	White=2     	Black=4     . An unexpected result.} 1/2-1/2

[Event "7th Sharjah Masters 2024"]
[Site "Sharjah"]
[Date "2024.05.15"]
[Round "2.40"]
[White "Jumabayev, Rinat"]
[Black "Klimkowski, Jan"]
[Result "1/2-1/2"]
[ECO "C60"]
[WhiteElo "2597"]
[BlackElo "2518"]
[Annotator "RC"]
[PlyCount "79"]
[EventDate "2024.05.13"]
[EventType "swiss"]
[EventCountry "UAE"]
[SourceTitle "playchess.com"]
[Source "ChessBase"]
[SourceQuality "1"]
[TimeControl "5400+30"]

1. e4 {[%emt 0:00:01]} e5 {[%emt 0:00:05]} 2. Nf3 {[%emt 0:00:07]} Nc6 {[%emt 0:00:04]} 3. Bb5 {[%emt 0:00:08]} a6 {[%emt 0:00:10]} 4. Ba4 {[%emt 0:00:15]} Nge7 {[%emt 0:00:10]} 5. O-O {[%emt 0:08:55]} Ng6 {[%emt 0:00:43]} 6. c3 {[%emt 0:03:54]} d5 {[%emt 0:00:40]} 7. d3 {[%emt 0:10:13]} Be7 {[%emt 0:03:24]} 8. Re1 {[%emt 0:04:30]} O-O {[%emt 0:05:28]} 9. Nbd2 {[%emt 0:02:03]} Be6 {[%emt 0:03:42]} 10. Nf1 {[%emt 0:05:35]} b5 {[%emt 0:05:51]} 11. Bb3 {[%emt 0:00:59]} Na5 {[%emt 0:01:41]} 12. Bxd5 {[%emt 0:03:09]} Bxd5 {[%emt 0:00:30]} 13. exd5 Qxd5 {[%emt 0:00:00]} 14. d4 {[%emt 0:13:31]} exd4 {[%emt 0:18:55]} 15. Ne3 {[%emt 0:01:34]} Qd7 {[%emt 0:00:55]} 16. Qxd4 {[%emt 0:00:46]} Rfd8 {[%emt 0:01:25]} 17. Qxd7 {[%emt 0:08:17]} Rxd7 {[%emt 0:00:06]} 18. Nf5 {[%emt 0:00:17]} Bf8 {[%emt 0:05:39]} 19. Kf1 {[%emt 0:19:10]} Rad8 {[%emt 0:01:55]} 20. h3 {[%emt 0:13:28]} c5 {[%emt 0:06:30]} 21. Ng3 {[%emt 0:03:02]} Rd5 {[%emt 0:02:57]} 22. Ne2 {[%emt 0:00:56]} Bd6 {[%emt 0:04:14]} 23. b3 {[%emt 0:00:15]} f6 {[%emt 0:02:24]} 24. Be3 {[%emt 0:00:06]} Kf7 {[%emt 0:04:12]} 25. Red1 {[%emt 0:00:45]} Be7 {[%emt 0:02:28]} 26. Rxd5 {[%emt 0:00:10]} Rxd5 {[%emt 0:00:02]} 27. Ke1 {[%emt 0:01:18]} Ke6 {[%emt 0:01:39]} 28. Rc1 {[%emt 0:00:26]} Bd6 {[%emt 0:07:00]} 29. Rc2 {[%emt 0:00:14]} h6 {[%emt 0:04:30]} 30. c4 {[%emt 0:00:52]} bxc4 {[%emt 0:00:13]} 31. bxc4 {[%emt 0:00:03]} Rd3 {[%emt 0:00:53]} 32. Bd2 {[%emt 0:00:41]} Nc6 {[%emt 0:00:54]} 33. Nc1 {[%emt 0:00:26]} Ra3 {[%emt 0:00:29]} 34. Nb3 {[%emt 0:00:05]} Ra4 {[%emt 0:01:29]} 35. Ke2 {[%emt 0:00:27]} Nge5 {[%emt 0:01:01]} 36. Nxe5 {[%emt 0:00:05]} Nxe5 {[%emt 0:00:39]} 37. Be3 {[%emt 0:00:22]} Nxc4 {[%emt 0:02:01]} 38. Bxc5 {[%emt 0:01:42]} Kd5 {[%emt 0:02:12]} 39. Bxd6 {[%emt 0:00:15]} Kxd6 {[%emt 0:00:59]} 40. Nd4 {[%emt 0:00:44]} 1/2-1/2

[Event "7th Sharjah Masters 2024"]
[Site "Sharjah"]
[Date "2024.05.15"]
[Round "2.41"]
[White "Safarli, Eltaj"]
[Black "Samant Aditya S"]
[Result "1-0"]
[ECO "B10"]
[WhiteElo "2597"]
[BlackElo "2501"]
[Annotator "TA"]
[PlyCount "79"]
[EventDate "2024.05.13"]
[EventType "swiss"]
[EventCountry "UAE"]
[SourceTitle "playchess.com"]
[Source "ChessBase"]
[SourceQuality "1"]
[TimeControl "5400+30"]

{[%evp 10,79,0,-18,6,18,22,0,-1,-11,0,0,21,26,31,16,32,0,38,39,51,56,70,85,77,61,87,88,54,43,76,47,64,67,69,59,68,53,137,139,211,209,248,248,250,262,237,234,364,337,288,258,381,381,918,297,1150,811,968,1085,1419,1385,5012,1722,1587,5572,5572,3370,29968,29970,29960,9887]} 1. e4 {[%emt 0:00:03]} c6 {[%emt 0:00:07]} 2. Nf3 {[%emt 0:01:29]} d5 {[%emt 0:00:08]} 3. d3 {[%emt 0:01:04]} dxe4 {[%emt 0:00:22]} 4. dxe4 {[%emt 0:00:04]} Qxd1+ {[%emt 0:00:05]} 5. Kxd1 {[%emt 0:00:04]} Nf6 {[%emt 0:00:21]} 6. Nbd2 {[%emt 0:00:22] B10: Caro-Kann: 2 d3 and 2 c4.} g6 {[%emt 0:01:00]} 7. Ne5 {[%emt 0:01:39]} Bh6 {[%emt 0:06:19]} 8. Bc4 {[%emt 0:07:21]} O-O {[%emt 0:18:20]} 9. f3 {[%emt 0:01:12]} b5 $146 {[%emt 0:03:13]} ({Predecessor:} 9... Nbd7 10. Nd3 Rd8 11. a4 Nf8 12. Ke2 Be6 13. Bxe6 Nxe6 14. Nb3 Bxc1 15. Rhxc1 Ne8 {0-1 Bartel,M (2609)-Svane,R (2620) Titled Tuesday intern op 21st Mar Late blitz 2023 (4)}) 10. Be2 {[%emt 0:02:07]} Rd8 {[%emt 0:30:31]} 11. a4 {[%emt 0:02:22]} b4 {[%emt 0:05:31]} 12. Bc4 {[%emt 0:09:42]} e6 {[%emt 0:00:08]} 13. a5 {[%emt 0:04:47]} Nfd7 {[%emt 0:05:32]} 14. Nd3 {[%emt 0:01:37]} c5 {[%emt 0:03:11]} 15. Bb5 {[%emt 0:09:51]} Bxd2 {[%emt 0:02:19]} 16. Bxd2 {[%emt 0:01:21]} Ba6 {[%emt 0:00:04]} 17. Bxa6 {[%emt 0:08:16]} Nxa6 {[%emt 0:01:11]} 18. Ke2 {[%emt 0:00:07]} f6 {[%emt 0:04:30]} 19. g4 {[%emt 0:03:24]} Rab8 {[%emt 0:08:38]} 20. g5 {[%emt 0:02:53]} f5 {[%emt 0:00:58]} (20... c4 21. Nf2 f5 22. Rad1 $15) 21. Bf4 {[%emt 0:01:04]} c4 {[%emt 0:04:20]} 22. Ne5 {[%emt 0:02:04]} Nxe5 {[%emt 0:01:19]} 23. Bxe5 {[%emt 0:00:03]} Rb7 {[%emt 0:00:08]} ({Black should play} 23... Rb5 $14 24. Bf6 Rd7) 24. Rhd1 $16 {[%emt 0:01:01]} Rbd7 {[%emt 0:00:55]} (24... Rc8 $16 {might work better.} 25. Rd4 c3) 25. Rxd7 $18 {[%emt 0:00:28]} Rxd7 {[%emt 0:00:02] [#]} 26. Rd1 $1 {[%emt 0:00:32]} Rxd1 {[%emt 0:01:41]} 27. Kxd1 {[%emt 0:00:02]} Kf7 {[%emt 0:01:34]} 28. Kd2 {[%emt 0:01:30]} fxe4 {[%emt 0:01:06]} (28... Ke7 $142 29. Ke3 fxe4 30. fxe4 (30. Kxe4 b3 $16) 30... c3) 29. fxe4 $18 {[%emt 0:00:04]} Nc5 {[%emt 0:00:42]} 30. Ke3 {[%emt 0:02:23]} b3 {[%emt 0:00:35]} (30... Nb7 {keeps fighting.}) 31. cxb3 $18 {[%emt 0:00:09]} Nxb3 $2 {[%emt 0:00:10]} (31... cxb3 32. Bd4 Na6) 32. a6 $18 {[%emt 0:00:05]} Ke7 $2 {[%emt 0:00:52]} (32... c3 33. Bxc3 Nc5) 33. Bd4 $18 {[%emt 0:00:34]} Kd7 {[%emt 0:00:34]} 34. Bxa7 {[%emt 0:00:05]} Kc6 {[%emt 0:00:15]} 35. Kf4 {[%emt 0:01:24]} Kb5 {[%emt 0:00:45]} 36. Be3 {[%emt 0:00:26]} Kxa6 {[%emt 0:00:05]} 37. Ke5 {[%emt 0:00:02]} Kb5 {[%emt 0:00:28]} 38. Kxe6 {[%emt 0:00:12]} Na1 {[%emt 0:00:49]} 39. Kd5 {[%emt 0:00:48]} Nc2 {[%emt 0:00:35]} 40. Bd2 {[%emt 0:00:04]} 1-0